fUSD/lending_fUSD_20241116
["ID","MTS","AMOUNT","RATE_DAILY","PERIOD"]
[342324764,1731715361130,998.86,8.219e-05,2]
[342324766,1731715458304,212.379,0.0002375,60]
[342324767,1731715650170,-1000.0,8.512e-05,2]
[342324768,1731715650192,-250.0,8.543e-05,2]
[342324769,1731715650212,-412.05939426,8.914e-05,2]
[342324770,1731715650234,-308.57,8.914e-05,2]
[342324771,1731715650256,-151.08,9.22e-05,2]
[342324772,1731715650277,-151.08,9.222e-05,2]
[342324773,1731715650298,-151.08,9.224e-05,2]
[342324774,1731715650318,-151.08,9.227e-05,2]
[342324775,1731715650338,-151.08,9.229e-05,2]
[342324776,1731715650358,-151.08,9.232e-05,2]
[342324777,1731715650378,-151.08,9.234e-05,2]
[342324778,1731715650398,-151.08,9.237e-05,2]
[342324779,1731715650418,-151.08,9.239e-05,2]
[342324780,1731715650440,-151.08,9.241e-05,2]
[342324781,1731715650461,-151.08,9.244e-05,2]
[342324782,1731715650481,-151.08,9.246e-05,2]
[342324783,1731715650500,-151.08,9.249e-05,2]
[342324784,1731715650520,-151.08,9.251e-05,2]
[342324785,1731715650540,-151.08,9.254e-05,2]
[342324786,1731715650559,-151.08,9.256e-05,2]
[342324787,1731715650579,-447.02,9.257e-05,2]
[342324788,1731715650599,-151.08,9.259e-05,2]
[342324789,1731715650618,-151.08,9.261e-05,2]
[342324790,1731715650639,-151.08,9.263e-05,2]
[342324791,1731715650664,-151.08,9.266e-05,2]
[342324792,1731715650685,-150.0,9.386e-05,2]
[342324793,1731715650705,-300.0,9.386e-05,2]
[342324794,1731715650725,-496.43,9.386e-05,2]
[342324795,1731715650745,-1000.0,9.576e-05,2]
[342324796,1731715650765,-250.0,9.675e-05,2]
[342324797,1731715650784,-2225.10654786,9.675e-05,2]
[342324810,1731715831894,-250.0,8.521e-05,2]
[342324813,1731715831903,-150.00000001,9e-05,2]
[342324815,1731715831913,-380.0,9.393e-05,2]
[342324817,1731715831921,-445.0064,9.575e-05,2]
[342324818,1731715831931,-2142.11089999,9.675e-05,2]
[342324821,1731715831953,-1061.71255215,9.675e-05,2]
[342324823,1731715831964,-791.70612677,9.798e-05,2]
[342324825,1731715831976,-210.00440784,9.798e-05,2]
[342324827,1731715831986,-976.47933154,9.898e-05,2]
[342324829,1731715831997,-1295.99896846,9.898e-05,2]
[342324831,1731715832006,-273.8877,9.898e-05,2]
[342324833,1731715832014,-1849.2621,9.898e-05,2]
[342324835,1731715832022,-16439.67760045,9.9e-05,2]
[342324837,1731715832030,-500.0,9.973e-05,2]
[342324839,1731715832037,-811.12794584,9.988e-05,2]
[342324840,1731715832046,-1200.0,9.988e-05,2]
[342324841,1731715832055,-895.73183808,9.988e-05,2]
[342324842,1731715832063,-4097.8000021,9.988e-05,2]
[342324843,1731715832079,-1407.06112803,9.988e-05,2]
[342324844,1731715832093,-947.31015434,9.988e-05,2]
[342324845,1731715832101,-3085.56798374,9.988e-05,2]
[342324846,1731715832112,-1035.44671417,9.988e-05,2]
[342324847,1731715832118,-150.0,9.996e-05,2]
[342324848,1731715832125,-293.89498103,9.997e-05,2]
[342324849,1731715832135,-1241.88,9.997e-05,2]
[342324850,1731715832145,-500.0,9.997e-05,2]
[342324851,1731715832154,-500.0,9.997e-05,2]
[342324852,1731715832162,-500.0,9.997e-05,2]
[342324853,1731715832172,-571.88688954,9.997e-05,2]
[342324854,1731715832182,-453.67511045,9.997e-05,2]
[342324855,1731715832191,-500.0,9.997e-05,2]
[342324856,1731715832200,-500.0,9.997e-05,2]
[342324857,1731715832209,-500.0,9.997e-05,2]
[342324858,1731715832219,-500.0,9.997e-05,2]
[342324859,1731715832229,-500.0,9.997e-05,2]
[342324860,1731715832238,-500.0,9.997e-05,2]
[342324861,1731715832247,-603.74,9.997e-05,2]
[342324862,1731715832257,-500.0,9.997e-05,2]
[342324863,1731715832266,-500.0,9.997e-05,2]
[342324864,1731715832275,-500.0,9.997e-05,2]
[342324865,1731715832284,-500.0,9.997e-05,2]
[342324866,1731715832293,-500.0,9.997e-05,2]
[342324867,1731715832303,-500.0,9.997e-05,2]
[342324868,1731715832312,-89.19619995,9.997e-05,2]
[342324869,1731715834770,-299.6900001,9.997e-05,2]
[342324870,1731715834783,-111.11379995,9.997e-05,2]
[342324871,1731715834792,-212.70844744,9.997e-05,2]
[342324875,1731715837955,-287.29155256,9.997e-05,2]
[342324876,1731715837966,-500.0,9.997e-05,2]
[342324877,1731715837976,-2959.24249695,9.998e-05,2]
[342324878,1731715837988,-500.0,9.998e-05,2]
[342324879,1731715838008,-879.14563992,9.998e-05,2]
[342324880,1731715838065,-317.845,9.998e-05,2]
[342324881,1731715838077,-1120.66502401,9.998e-05,2]
[342324882,1731715838096,-254.99999,9.998e-05,2]
[342324883,1731715838109,-5622.49853044,9.998e-05,2]
[342324884,1731715838172,-3001.66950245,9.998e-05,2]
[342324885,1731715838227,-293.10632078,9.998e-05,2]
[342324886,1731715838282,-452.64,9.998e-05,2]
[342324887,1731715838294,-612.18240239,9.998e-05,2]
[342324888,1731715838305,-1562.92844443,9.998e-05,2]
[342324901,1731715839913,-910.08,9.998e-05,2]
[342324902,1731715839925,-1362.7092578,9.998e-05,2]
[342324903,1731715839937,-1130.07872,9.998e-05,2]
[342324904,1731715839967,-5515.90098311,9.998e-05,2]
[342324905,1731715840199,-270.525589,9.998e-05,2]
[342324906,1731715840211,-3185.65302144,9.998e-05,2]
[342324907,1731715840222,-602.7973578,9.998e-05,2]
[342324908,1731715840233,-1718.57543512,9.998e-05,2]
[342324909,1731715840245,-1244.09212786,9.998e-05,2]
[342324910,1731715840257,-337.374,9.998e-05,2]
[342324911,1731715840277,-7987.6482867,9.998e-05,2]
[342324912,1731715840289,-12184.55409841,9.998e-05,2]
[342324913,1731715842536,-500.0,9.973e-05,2]
[342324914,1731715842546,-11492.89012067,9.998e-05,2]
[342324915,1731715842591,-651.77026718,9.998e-05,2]
[342324920,1731715842965,-1872.08172289,9.998e-05,2]
[342324921,1731715842976,-35059.03070488,9.998e-05,2]
[342324922,1731715842987,-2198.31428799,9.998e-05,2]
[342324924,1731715842998,-735.896,9.998e-05,2]
[342324925,1731715843017,-5015.50646341,9.998e-05,2]
[342324926,1731715843028,-7281.21700436,9.998e-05,2]
[342324927,1731715843039,-7483.98605945,9.998e-05,2]
[342324928,1731715843051,-1323.34911343,9.998e-05,2]
[342324929,1731715843063,-6036.59075,9.998e-05,2]
[342324930,1731715843074,-381.53400817,9.998e-05,2]
[342324931,1731715843085,-1605.35180376,9.998e-05,2]
[342324932,1731715843104,-404.3835385,9.998e-05,2]
[342324933,1731715843115,-36026.73012124,9.998e-05,2]
[342324934,1731715843126,-1112.32159237,9.998e-05,2]
[342324935,1731715843138,-369.04840763,9.998e-05,2]
[342324936,1731715843149,-947.300632,9.998e-05,2]
[342324937,1731715843160,-509.398014,9.998e-05,2]
[342324938,1731715843171,-639.09999998,9.998e-05,2]
[342324939,1731715843182,-46879.1602938,9.998e-05,2]
[342324940,1731715843193,-2514.17187226,9.998e-05,2]
[342324941,1731715843204,-3333.6090474,9.998e-05,2]
[342324942,1731715843215,-3741.45452557,9.998e-05,2]
[342324943,1731715843225,-1200.31549381,9.998e-05,2]
[342324944,1731715843244,-445.70504057,9.998e-05,2]
[342324945,1731715843255,-411.7493109,9.998e-05,2]
[342324946,1731715843295,-2846.00596719,9.998e-05,2]
[342324957,1731715845924,-11260.66012978,9.998e-05,2]
[342324958,1731715845976,-346.76974357,9.998e-05,2]
[342324959,1731715845988,-1396590.39661548,9.998e-05,2]
[342324960,1731715845998,-467.56436565,9.999e-05,2]
[342324961,1731715846009,-500.0,9.999e-05,2]
[342324962,1731715846018,-500.0,9.999e-05,2]
[342324963,1731715846028,-500.0,9.999e-05,2]
[342324964,1731715846037,-338.68597966,9.999e-05,2]
[342324965,1731715846046,-500.0,9.999e-05,2]
[342324966,1731715846056,-500.0,9.999e-05,2]
[342324967,1731715846065,-500.0,9.999e-05,2]
[342324968,1731715846074,-500.0,9.999e-05,2]
[342324969,1731715846084,-250.05,9.999e-05,2]
[342324970,1731715846095,-1118.978425,0.0001,2]
[342324971,1731715846104,-70569785.36252871,0.0001,2]
[342324972,1731715846116,-11814338.77156037,0.0001,2]
[342324973,1731715846126,-3927.01405772,0.0001,2]
[342324974,1731715846136,-1160.39,0.0001,2]
[342324975,1731715846147,-1951.13,0.0001,2]
[342324976,1731715846156,-4730.31394988,0.0001,2]
[342324977,1731715846165,-466301.11747703,0.0001,2]
[342324978,1731715846180,-927.59320465,0.0001,2]
[342324979,1731715846196,-383666.54515925,0.0001,2]
[342324980,1731715846207,-1447.96289974,0.0001,2]
[342324981,1731715846219,-44012.30515167,0.0001,2]
[342324982,1731715846229,-1000.0,0.0001,2]
[342324983,1731715846239,-1000.0,0.0001,2]
[342324984,1731715846248,-1000.0,0.0001,2]
[342324985,1731715846257,-1000.0,0.0001,2]
[342324986,1731715846268,-250.0,0.0001,2]
[342324987,1731715846277,-449.0,0.0001,2]
[342324988,1731715846286,-449.0,0.0001,2]
[342324989,1731715846296,-449.0,0.0001,2]
[342324990,1731715846307,-449.0,0.0001,2]
[342324991,1731715846317,-449.0,0.0001,2]
[342324992,1731715846326,-449.0,0.0001,2]
[342324993,1731715846335,-449.0,0.0001,2]
[342324994,1731715846345,-449.0,0.0001,2]
[342324995,1731715846354,-449.0,0.0001,2]
[342324996,1731715846363,-449.0,0.0001,2]
[342324997,1731715846373,-449.0,0.0001,2]
[342324998,1731715846382,-449.0,0.0001,2]
[342324999,1731715846391,-449.0,0.0001,2]
[342325000,1731715846400,-449.0,0.0001,2]
[342325001,1731715846409,-449.0,0.0001,2]
[342325002,1731715846418,-449.0,0.0001,2]
[342325003,1731715846427,-449.0,0.0001,2]
[342325004,1731715846437,-449.0,0.0001,2]
[342325005,1731715846446,-449.0,0.0001,2]
[342325006,1731715846455,-449.0,0.0001,2]
[342325007,1731715846465,-200.0,0.0001,2]
[342325008,1731715846475,-200.0,0.0001,2]
[342325009,1731715846484,-200.0,0.0001,2]
[342325010,1731715846493,-200.0,0.0001,2]
[342325011,1731715846502,-200.0,0.0001,2]
[342325012,1731715846511,-200.0,0.0001,2]
[342325013,1731715846520,-200.0,0.0001,2]
[342325014,1731715846529,-200.0,0.0001,2]
[342325015,1731715846538,-200.0,0.0001,2]
[342325016,1731715846547,-200.0,0.0001,2]
[342325017,1731715846558,-200.0,0.0001,2]
[342325018,1731715846567,-200.0,0.0001,2]
[342325019,1731715846577,-200.0,0.0001,2]
[342325020,1731715846585,-600.0,0.0001,2]
[342325021,1731715846597,-600.0,0.0001,2]
[342325022,1731715846607,-158.382,0.0001,2]
[342325023,1731715846616,-3000.0,0.0001,2]
[342325024,1731715846626,-150.0,0.0001,2]
[342325025,1731715846635,-150.0,0.0001,2]
[342325026,1731715846644,-150.0,0.0001,2]
[342325027,1731715846653,-105275.60081875,0.0001,2]
[342325028,1731715846662,-11759.43389568,0.0001,2]
[342325029,1731715846671,-1157.98886627,0.0001,2]
[342325030,1731715846681,-33345.74485259,0.0001,2]
[342325031,1731715846692,-644.30329928,0.0001,2]
[342325032,1731715846703,-2439.28005778,0.0001,2]
[342325033,1731715846728,-5540.59240493,0.0001,2]
[342325034,1731715846737,-1253.05277689,0.0001,2]
[342325035,1731715846747,-186.17551277,0.0001,2]
[342325036,1731715846756,-878.52110756,0.0001,2]
[342325037,1731715846765,-878.52110756,0.0001,2]
[342325038,1731715846775,-295.11878122,0.0001,2]
[342325039,1731715846786,-583.40232634,0.0001,2]
[342325040,1731715846796,-308.57,0.00010028,2]
[342325041,1731715846806,-500.0,0.00010049,2]
[342325042,1731715846815,-500.0,0.00010049,2]
[342325043,1731715846825,-245.00911,0.00010065,2]
[342325044,1731715846834,-2171.0,0.00010069,3]
[342325045,1731715846846,-1429.3181429,0.00010094,2]
[342325046,1731715847109,-1095.64288259,0.00010094,2]
[342325047,1731715847120,-9514.01466998,0.00010094,2]
[342325048,1731715847130,-247.23852099,0.000101,2]
[342325049,1731715847139,-216.43,0.00010116,2]
[342325050,1731715847148,-500.0,0.00010196,2]
[342325051,1731715847158,-500.0,0.00010196,2]
[342325052,1731715847167,-500.0,0.00010196,2]
[342325053,1731715847176,-295.2738993,0.00010196,2]
[342325055,1731715867651,3065.08975,0.00025,60]
[342325056,1731715879002,3065.08975,0.00025,60]
[342325057,1731715895017,3065.08975,0.00025,60]
[342325059,1731716130908,202.266,0.00025,60]
[342325060,1731716228562,453.674761,8.178e-05,2]
[342325061,1731716252030,978.09,8.219e-05,2]
[342325064,1731716292030,300.0,0.00013697,120]
[342325065,1731716292200,300.0,0.00013699,120]
[342325066,1731716292359,308.41471802,0.00014499,120]
[342325067,1731716594920,1019.68705009,8e-05,14]
[342325069,1731716727316,1019.56391797,0.00025,60]
[342325070,1731716763822,1500.0,0.00025,120]
[342325071,1731716873450,273.87430184,0.00025,120]
[342325072,1731716875055,236.27123937,0.00022,120]
[342325073,1731716895412,1480.5678454,0.00025,60]
[342325075,1731716919805,639.20846151,0.00025,120]
[342325081,1731716934442,929.18,8.219e-05,2]
[342325102,1731717003116,150.0,8.219e-05,2]
[342325103,1731717003350,151.81800318,8.219e-05,2]
[342325113,1731717032564,-300.0,9.328e-05,2]
[342325114,1731717032577,-23900.0,9.329e-05,2]
[342325115,1731717032588,-248.21,9.447e-05,2]
[342325116,1731717032597,-591.56,9.471e-05,2]
[342325118,1731717032608,-1000.0,9.631e-05,2]
[342325119,1731717032618,-250.0,9.692e-05,2]
[342325120,1731717032627,-250.0,9.714e-05,2]
[342325121,1731717032637,-310.85,9.793e-05,2]
[342325122,1731717032646,-151.0,9.831e-05,2]
[342325123,1731717032656,-150.0,9.897e-05,2]
[342325125,1731717032666,-1275.2082,9.898e-05,2]
[342325127,1731717032675,-292.9109,9.898e-05,2]
[342325128,1731717032684,-29523.7141,9.898e-05,2]
[342325130,1731717032694,-2481.6891875,9.98e-05,2]
[342325132,1731717032704,-522.01,9.98e-05,2]
[342325135,1731717032714,-403.788,9.997e-05,2]
[342325137,1731717032724,-2508.54711099,0.0001,2]
[342325139,1731717032736,-1173.88307995,0.0001,2]
[342325149,1731717033533,-932.62286945,0.0001,2]
[342325150,1731717033567,-985.58535338,0.0001,2]
[342325151,1731717033587,-199.36158623,0.0001,2]
[342325152,1731717033597,-161.86013088,0.0001,2]
[342325153,1731717033608,-250.0,0.0001,2]
[342325154,1731717033618,-2005.57136589,0.0001,2]
[342325155,1731717033627,-7575.00306763,0.0001,2]
[342325156,1731717033639,-2134.63112316,0.0001,2]
[342325158,1731717038135,-500.0,9.973e-05,2]
[342325159,1731717038144,-3077.31086243,0.0001,2]
[342325160,1731717038154,-307546.84187426,0.0001,2]
[342325161,1731717038248,-2469.86278306,0.0001,2]
[342325162,1731717038260,-257.82237684,0.0001,2]
[342325163,1731717038271,-3065.34814042,0.0001,2]
[342325164,1731717038282,-391.77981625,0.0001,2]
[342325165,1731717038364,-4771.20532699,0.0001,2]
[342325166,1731717038377,-7688.5827429,0.0001,2]
[342325167,1731717038389,-742.11629914,0.0001,2]
[342325168,1731717038400,-277.0527081,0.0001,2]
[342325169,1731717038430,-720.80059168,0.0001,2]
[342325179,1731717040101,-339.5935685,0.0001,2]
[342325180,1731717040112,-9096.64373114,0.0001,2]
[342325181,1731717040123,-8947.21879473,0.0001,2]
[342325182,1731717040135,-8943.78386462,0.0001,2]
[342325183,1731717040146,-9077.54866152,0.0001,2]
[342325184,1731717040159,-8943.84023489,0.0001,2]
[342325185,1731717040170,-1133.4758099,0.0001,2]
[342325186,1731717040876,-4533.5284049,0.0001,2]
[342325187,1731717040888,-369.60058488,0.0001,2]
[342325188,1731717041051,-3325.9663336,0.0001,2]
[342325189,1731717041102,-450.0,0.0001,2]
[342325190,1731717041114,-875.81996469,0.0001,2]
[342325191,1731717041125,-686.1,0.0001,2]
[342325200,1731717043198,-247.32,9.841e-05,2]
[342325202,1731717043206,-9108.30438972,0.0001,2]
[342325204,1731717043217,-19926.00028477,0.0001,2]
[342325210,1731717043261,-9026.6,0.0001,2]
[342325212,1731717043320,-9932.67371783,0.0001,2]
[342325218,1731717046119,-6725.55733571,0.0001,2]
[342325219,1731717046181,-378.37294716,0.0001,2]
[342325220,1731717046192,-813.5,0.0001,2]
[342325221,1731717046204,-1915.44941856,0.0001,2]
[342325222,1731717046214,-25367.81938857,0.0001,2]
[342325223,1731717046244,-248489.06874882,0.0001,2]
[342325224,1731717046257,-1491.76538782,0.0001,2]
[342325225,1731717046272,-8512.82883593,0.0001,2]
[342325226,1731717046417,-25082.86109472,0.0001,2]
[342325227,1731717046428,-33282.70631421,0.0001,2]
[342325228,1731717046478,-961.05460762,0.0001,2]
[342325229,1731717046493,-8553.32442218,0.0001,2]
[342325230,1731717046504,-1615.08456686,0.0001,2]
[342325231,1731717046539,-685.65342,0.0001,2]
[342325232,1731717046550,-777.2687132,0.0001,2]
[342325233,1731717046561,-8867.15170299,0.0001,2]
[342325234,1731717049572,300.0,0.00025,60]
[342325235,1731717073656,314.5482,8.42e-05,2]
[342325236,1731717123358,150.0,7.599e-05,2]
[342325237,1731717123380,9.53,7.599e-05,2]
[342325238,1731717151676,-159.53,9.498e-05,2]
[342325239,1731717151702,-500.0,9.712e-05,2]
[342325240,1731717151723,-520.6,9.838e-05,2]
[342325241,1731717151746,-250.0,9.875e-05,2]
[342325242,1731717151767,-1486.6979,9.9e-05,2]
[342325243,1731717151789,-209.9511,9.9e-05,2]
[342325244,1731717151810,-500.0,9.973e-05,2]
[342325245,1731717151832,-6990.22902403,9.973e-05,2]
[342325246,1731717151859,-17382.99197597,0.0001,2]
[342325248,1731717457873,1700.0,0.00025,60]
[342325249,1731717491714,192.63,0.0002375,60]
[342325250,1731717492250,192.553,0.0002425,60]
[342325251,1731717682447,215.44,8.219e-05,2]
[342325252,1731717769445,976.28,8.219e-05,2]
[342325254,1731717804696,223.001,0.0002425,60]
[342325255,1731717804977,500.0,0.00024874,120]
[342325256,1731717820891,2000.0,0.00024749,120]
[342325257,1731717840003,500.0,0.00022474,120]
[342325258,1731717840406,500.0,0.00023974,120]
[342325259,1731717845064,500.0,0.00024974,120]
[342325260,1731717848101,2842.95,8.35e-05,2]
[342325261,1731717919016,2000.0,0.00025,60]
[342325262,1731717925278,200.0,8.353e-05,2]
[342325263,1731717928772,160.62,8.337e-05,2]
[342325264,1731717936447,239.86,8.337e-05,2]
[342325265,1731717970138,2000.0,0.00025,60]
[342325266,1731717980520,250.0,8.314e-05,2]
[342325267,1731717993206,966.54,8.294e-05,2]
[342325268,1731718042164,1128.76,8.313e-05,2]
[342325269,1731718052125,-150.0,8.932e-05,2]
[342325270,1731718052149,-150.73,8.955e-05,2]
[342325271,1731718052170,-150.73,8.957e-05,2]
[342325272,1731718052193,-150.73,8.96e-05,2]
[342325273,1731718052214,-150.73,8.962e-05,2]
[342325274,1731718052235,-150.73,8.965e-05,2]
[342325275,1731718052258,-150.73,8.967e-05,2]
[342325276,1731718052280,-150.73,8.969e-05,2]
[342325277,1731718052303,-150.73,8.972e-05,2]
[342325278,1731718052326,-150.73,8.974e-05,2]
[342325279,1731718052347,-150.73,8.976e-05,2]
[342325280,1731718052369,-150.73,8.979e-05,2]
[342325281,1731718052391,-150.73,8.981e-05,2]
[342325282,1731718052413,-150.73,8.983e-05,2]
[342325283,1731718052434,-150.73,8.986e-05,2]
[342325284,1731718052456,-150.73,8.988e-05,2]
[342325285,1731718052478,-150.73,8.99e-05,2]
[342325286,1731718052500,-150.73,8.993e-05,2]
[342325287,1731718052521,-150.73,8.995e-05,2]
[342325288,1731718052542,-150.73,8.998e-05,2]
[342325289,1731718052563,-150.73,9e-05,2]
[342325290,1731718052584,-2083.35,9.01e-05,2]
[342325291,1731718052605,-113.41133073,9.017e-05,2]
[342325292,1731718054870,159.53,7.546e-05,2]
[342325293,1731718059884,658.435884,0.00025,60]
[342325295,1731718211056,2000.0,0.00025,60]
[342325302,1731718232223,-618.78785886,8.983e-05,2]
[342325303,1731718232235,-841.25800633,8.983e-05,2]
[342325304,1731718232246,-717.63413481,8.983e-05,2]
[342325305,1731718232255,-722.09433585,8.986e-05,2]
[342325306,1731718232286,-32.85566415,8.986e-05,2]
[342325307,1731718232295,-226.37,8.986e-05,2]
[342325308,1731718232305,-1000.0,8.986e-05,2]
[342325309,1731718232314,-353.46,9.017e-05,2]
[342325310,1731718232323,-300.0,9.054e-05,2]
[342325311,1731718232332,-4815.01433585,9.055e-05,2]
[342325312,1731718232349,-197.48566415,9.055e-05,2]
[342325313,1731718232359,-473.30059777,9.101e-05,2]
[342325314,1731718232401,-520.41993916,9.101e-05,2]
[342325315,1731718232413,-1287.68946307,9.101e-05,2]
[342325316,1731718232422,-2185.47,9.269e-05,2]
[342325317,1731718232432,-1909.8,9.269e-05,2]
[342325318,1731718232442,-165.36673957,9.32e-05,2]
[342325319,1731718232451,-6214.24507901,9.321e-05,2]
[342325320,1731718232463,-17685.75492099,9.321e-05,2]
[342325321,1731718232473,-2748.68,9.36e-05,2]
[342325322,1731718232482,-167.32,9.419e-05,2]
[342325323,1731718232491,-200.0,9.433e-05,2]
[342325324,1731718232500,-2000.0,9.51e-05,2]
[342325325,1731718232509,-1769.4575,9.9e-05,2]
[342325326,1731718232518,-420.0,9.959e-05,2]
[342325327,1731718232531,-500.0,9.973e-05,2]
[342325328,1731718232540,-500.0,9.973e-05,2]
[342325329,1731718232550,-150.0,9.998e-05,2]
[342325330,1731718232559,-1269.283,9.999e-05,2]
[342325331,1731718232568,-500.0,9.999e-05,2]
[342325332,1731718232577,-487.51361303,9.999e-05,2]
[342325333,1731718232587,-500.0,9.999e-05,2]
[342325334,1731718232596,-500.0,9.999e-05,2]
[342325335,1731718232605,-500.0,9.999e-05,2]
[342325336,1731718232615,-478.20676721,9.999e-05,2]
[342325337,1731718232625,-316.67999997,9.999e-05,2]
[342325338,1731718232634,-502.12,9.999e-05,2]
[342325339,1731718232644,-502.12,9.999e-05,2]
[342325340,1731718232653,-502.12,9.999e-05,2]
[342325341,1731718232662,-502.12,9.999e-05,2]
[342325342,1731718232671,-502.12,9.999e-05,2]
[342325343,1731718232681,-502.12,9.999e-05,2]
[342325344,1731718232691,-502.12,9.999e-05,2]
[342325345,1731718232703,-502.12,9.999e-05,2]
[342325346,1731718232712,-502.12,9.999e-05,2]
[342325347,1731718232721,-502.12,9.999e-05,2]
[342325348,1731718232731,-502.12,9.999e-05,2]
[342325349,1731718232742,-502.12,9.999e-05,2]
[342325350,1731718232751,-233.84744755,9.999e-05,2]
[342325351,1731718232763,-268.27255245,9.999e-05,2]
[342325352,1731718232773,-502.12,9.999e-05,2]
[342325353,1731718232786,-502.12,9.999e-05,2]
[342325354,1731718232796,-440.90483705,9.999e-05,2]
[342325355,1731718232808,-61.21516295,9.999e-05,2]
[342325356,1731718232818,-502.12,9.999e-05,2]
[342325357,1731718232827,-502.12,9.999e-05,2]
[342325358,1731718232836,-204.48318275,9.999e-05,2]
[342325359,1731718232853,-297.63681725,9.999e-05,2]
[342325360,1731718232862,-502.12,9.999e-05,2]
[342325361,1731718232871,-502.12,9.999e-05,2]
[342325362,1731718232881,-502.12,9.999e-05,2]
[342325363,1731718232890,-502.12,9.999e-05,2]
[342325364,1731718232900,-71.5370615,9.999e-05,2]
[342325365,1731718232911,-430.7470262,9.999e-05,2]
[342325366,1731718232921,-434.70229676,9.999e-05,2]
[342325367,1731718232930,-398.14779552,9.999e-05,2]
[342325368,1731718232940,-291.56281879,9.999e-05,2]
[342325369,1731718232949,-1012.59297202,0.0001,2]
[342325370,1731718232960,-5630.98715691,0.0001,2]
[342325371,1731718232971,-1554.23068463,0.0001,2]
[342325372,1731718232993,-1969.74987323,0.0001,2]
[342325373,1731718233004,-499.34874343,0.0001,2]
[342325374,1731718233015,-187152.49385038,0.0001,2]
[342325375,1731718233033,-13356.32685484,0.0001,2]
[342325376,1731718233044,-403.73395117,0.0001,2]
[342325377,1731718233056,-2150.0,0.0001,2]
[342325379,1731718238369,-2817.9,0.0001,2]
[342325380,1731718238480,-3192.10000003,0.0001,2]
[342325381,1731718238491,-5140.23640883,0.0001,2]
[342325382,1731718238540,-1918.58110957,0.0001,2]
[342325383,1731718238551,-6363.01250456,0.0001,2]
[342325384,1731718238562,-2975.72098208,0.0001,2]
[342325385,1731718238573,-3149.27176229,0.0001,2]
[342325386,1731718238584,-3001.21237805,0.0001,2]
[342325387,1731718238595,-3631.13134079,0.0001,2]
[342325391,1731718240238,-447.89958479,9.999e-05,2]
[342325392,1731718240248,-6671.70432121,0.0001,2]
[342325393,1731718240259,-308.85298608,0.0001,2]
[342325394,1731718240269,-2302.44578296,0.0001,2]
[342325395,1731718240281,-642.51823329,0.0001,2]
[342325396,1731718240293,-1193.30562478,0.0001,2]
[342325397,1731718240304,-873.72,0.0001,2]
[342325398,1731718240461,-445.05999992,0.0001,2]
[342325400,1731718243310,-489.23263369,0.0001,2]
[342325401,1731718243322,-2228.21637508,0.0001,2]
[342325402,1731718243367,-11280.0,0.0001,2]
[342325403,1731718243479,-2147.5073737,0.0001,2]
[342325404,1731718243492,-5731.78630302,0.0001,2]
[342325405,1731718243505,-4136.76773718,0.0001,2]
[342325406,1731718243516,-442.70249532,0.0001,2]
[342325407,1731718243642,-1486.84259996,0.0001,2]
[342325408,1731718243699,-480.5324079,0.0001,2]
[342325415,1731718246264,-3514.33299655,0.0001,2]
[342325416,1731718246276,-2605.29659565,0.0001,2]
[342325417,1731718246322,-112062.32394611,0.0001,2]
[342325418,1731718246383,-34121.44915,0.0001,2]
[342325419,1731718246601,-7954.73255982,0.0001,2]
[342325420,1731718246613,-446.209985,0.0001,2]
[342325421,1731718246624,-2376.141495,0.0001,2]
[342325422,1731718246638,-1021.39044062,0.0001,2]
[342325423,1731718246650,-500.0,0.0001,2]
[342325429,1731718320541,255.0,0.00025,60]
[342325431,1731718454951,1016.34,8.219e-05,2]
[342325432,1731718480746,212.325,0.00025,60]
[342325433,1731718503328,215.44,8.219e-05,2]
[342325434,1731718507987,2000.0,0.00025,60]
[342325435,1731718740289,159.53,7.284e-05,2]
[342325436,1731718782383,2080.0,0.00025,60]